Cogmind - Beta 16.1 @@@ ROGUE MODE // 2026.02.17 @ 16:38:40 Player: SunShine214 Result: Destroyed by Y-54 Guardian with Gatling Laser Performance ------------- Evolutions (3) 1500 Regions Visited (8) 1600 Robots Destroyed (45) 225 Value Destroyed (985) 985 Prototype IDs (27) 540 Alien Tech Used (0) 0 Bonus (300) 300 TOTAL SCORE: 5150 Bonus ------- Aligned with FarCom 300 Cogmind --------- Core Integrity 0/700 Matter 239/300 Energy 100/100 System Corruption 14% Temperature Cool (6) Movement Flying (115) Ox1 Location -7/Factory Parts ------- > --- POWER (1) -------- (None) > --- PROPULSION (4) --- VTOL Module > --- UTILITY (6) ------ Small Storage Unit Signal Interpreter Modified TNC Improved Targeting Computer Armor Integrity Analyzer Hacking Suite > --- WEAPON (2) ------- (None) > --- INVENTORY (8) ---- Micro Nuclear Core Advanced Visual Processing Unit Experimental Sensor Array Improved Propulsion Shielding Hardened Medium Armor Plating Improved Light Armor Plating Heavy Missile Launcher Stasis Trap (100%) Peak State ------------ > --- POWER ------------ Micro Nuclear Core > --- PROPULSION ------- Carbon-fiber Leg Wheel Wheel > --- UTILITY ---------- Small Storage Unit Signal Interpreter Modified TNC Improved Targeting Computer Advanced Targeting Computer Hacking Suite > --- WEAPON ----------- Precision Shock Rifle Impact Mace > --- INVENTORY -------- Micro Nuclear Core Armored Treads Advanced Visual Processing Unit Experimental Sensor Array Improved Light Armor Plating Improved Field Recycling Unit Heavy Missile Launcher Stasis Trap [Rating: 38] Favorites ----------- Power Micro Nuclear Core Engine Light Ion Engine Power Core Micro Nuclear Core Propulsion Flight Unit Treads Light Treads Leg Carbon-fiber Leg Wheel Wheel Hover Unit Gravmag System Flight Unit Flight Unit Utility Small Storage Unit Device Experimental Sensor Array Storage Small Storage Unit Processor Signal Interpreter Hackware Hacking Suite Weapon Mini Grenade Launcher Energy Gun Small Laser Ballistic Gun Autogun Launcher Mini Grenade Launcher Special Weapon Mining Laser Impact Weapon Impact Mace Slashing Weapon Katana Build | -11 -10 -10 -9 -9 -9 -8 -8 -7 ------- Run | Yrd Mat Min Mat Min Exi Min Mat Fac Slots Evolved 6 | . . . 2 . . . 2 2 Power . | . . . . . . . . . Propulsion 2 | . . . . . . . 2 . Utility 4 | . . . 2 . . . . 2 Weapon . | . . . . . . . . . Parts Attached 40 | 7 3 3 1 1 . . 5 20 Power 3 | 1 . . . . . . . 2 Engine 1 | 1 . . . . . . . . Core 2 | . . . . . . . . 2 Reactor . | . . . . . . . . . Propulsion 13 | 2 . 2 . . . . 2 7 Treads 3 | 2 . . . . . . . 1 Leg 1 | . . . . . . . . 1 Wheel 2 | . . . . . . . . 2 Hover 1 | . . . . . . . . 1 Flight 6 | . . 2 . . . . 2 2 Utility 11 | 2 1 . 1 1 . . 1 5 Device 2 | 1 . . 1 . . . . . Storage 2 | 1 . . . . . . . 1 Processor 5 | . 1 . . 1 . . 1 2 Hackware 2 | . . . . . . . . 2 Protection . | . . . . . . . . . Artifact . | . . . . . . . . . Weapon 13 | 2 2 1 . . . . 2 6 Energy Gun 6 | 2 1 . . . . . . 3 Energy Cannon . | . . . . . . . . . Ballistic Gun 1 | . . . . . . . 1 . Ballistic Cannon . | . . . . . . . . . Launcher 3 | . . 1 . . . . 1 1 Special Weapon 1 | . 1 . . . . . . . Impact Weapon 1 | . . . . . . . . 1 Slashing Weapon 1 | . . . . . . . . 1 Piercing Weapon . | . . . . . . . . . Special Melee Weapon . | . . . . . . . . . Unidentified Prototypes 4 | . . . 1 . . . . 3 Corrupted Parts 1 | 1 . . . . . . . . System Corruption 1 | 1 . . . . . . . . Parts Lost 19 | . 2 1 . . . . . 16 Power 3 | . 1 . . . . . . 2 Propulsion 11 | . 1 1 . . . . . 9 Utility 3 | . . . . . . . . 3 Weapon 2 | . . . . . . . . 2 Highest Loss Streak 9 | . 1 1 . . . . . 9 To Critical Strikes . | . . . . . . . . . Average Backups 6 | . 5 6 7 7 7 6 5 6 Power . | . . . . . . . . . Propulsion . | . 1 . 1 2 2 1 . . Utility 2 | . 1 2 2 2 2 3 4 3 Weapon 1 | . 2 3 4 3 2 2 1 1 Tool/Special . | . . . . . . . . . Unused Backups 9 | . . . . 1 . 1 . 7 Power 1 | . . . . . . . . 1 Propulsion 2 | . . . . 1 . 1 . . Utility 5 | . . . . . . . . 5 Weapon 1 | . . . . . . . . 1 Tool/Special . | . . . . . . . . . Average Slot Usage (%) 77 | . 89 69 62 62 66 66 77 77 Engine 1 | . 9 . . . . . . . Core 2 | . . . . . . . . 4 Treads 5 | . 26 1 . . . . . . Wheel 1 | . . . . . . . . 3 Flight 14 | . . 21 22 22 22 22 29 15 Device 3 | . 6 . 11 11 11 11 4 . Storage 9 | . 14 14 11 11 11 11 9 6 Processor 19 | . 3 14 11 16 22 22 22 27 Hackware 2 | . . . . . . . . 4 Energy Gun 6 | . 25 14 3 . . . . . Ballistic Gun 1 | . . . . . . . 4 2 Launcher 2 | . . 3 4 2 . . 6 3 Impact Weapon 1 | . . . . . . . . 2 Peak Build Rating 38 | 9 9 6 14 15 16 16 21 38 Average Rating 19 | 5 7 5 13 14 15 16 19 27 On Entrance 11 | . 9 5 6 13 15 16 16 21 Avg Prop Armor Cover (%) 11 | . . . . . . . 9 11 Naked Turns . | . . . . . . . . . Heaviest Build 18 | 12 12 9 9 9 6 6 10 18 Greatest Support 40 | 40 40 8 8 8 8 8 17 20 Greatest Overweight (x) 3 | . . 2 1 1 . . . 3 Average Overweight (x) . | . . . . . . . . . Largest Inventory Capacity 8 | 8 8 8 8 8 8 8 8 8 Average Capacity 7 | 6 8 8 8 8 8 8 8 7 Most Carried 8 | 2 7 7 8 8 8 8 7 8 Average Carried 6 | . 5 6 7 7 8 7 6 7 Final Capacity 8 | 8 8 8 8 8 8 8 8 8 Final Carried 8 | 2 7 7 8 8 8 8 7 8 Class Distribution -------------------- 66% | Mutant 20% | Sprinter 7% | Scavenger-Mutant 5% | Scavenger-Sprinter Dominant Class ---------------- Mutant | -10/Materials Mutant | -10/Mines Mutant | -9/Materials Mutant | -9/Mines Mutant | -9/Exiles Mutant | -8/Mines Mutant | -8/Materials Sprinter | -7/Factory Resources | -11 -10 -10 -9 -9 -9 -8 -8 -7 ----------- Run | Yrd Mat Min Mat Min Exi Min Mat Fac Matter Collected 874 | 270 9 . . 97 . 66 56 376 Remotely . | . . . . . . . . . Salvage Created 1148 | 111 163 11 12 63 . . 72 716 Parts 81 | 6 13 4 8 8 . . 6 36 Haulers Intercepted 3 | . . . . . . . 2 1 Recyclers Shooed . | . . . . . . . . . Parts Field Recycled . | . . . . . . . . . Retrieved Matter . | . . . . . . . . . Parts Self-Destructed . | . . . . . . . . . Prevented . | . . . . . . . . . Parts Restored . | . . . . . . . . . Kills | -11 -10 -10 -9 -9 -9 -8 -8 -7 ------- Run | Yrd Mat Min Mat Min Exi Min Mat Fac Combat Hostiles Destroyed 28 | . 4 3 3 5 . . . 13 Melee 6 | . . . . . . . . 6 Guns 4 | . 4 . . . . . . . AOE 17 | . . 3 3 5 . . . 6 Classes Destroyed 13 | 3 3 . . 1 . . 1 5 Worker 4 | 1 . . . . . . 1 2 Builder 2 | . . . . . . . . 2 Tunneler 1 | 1 . . . . . . . . Hauler 3 | . . . . . . . 2 1 Recycler 3 | 1 . . . . . . . 2 Operator 1 | . . . . . . . . 1 Watcher 3 | . 3 . . . . . . . Swarmer 14 | . 3 3 3 3 . . . 2 Grunt 8 | . 1 . . 1 . . . 6 Brawler 1 | . . . . . . . . 1 Duelist 1 | . . . . 1 . . . . Hunter 2 | . . . . . . . . 2 Programmer 2 | . . . . . . . . 2 Best Kill Streak 5 | 1 4 3 3 5 . . 1 5 Combat Bots Only 5 | . 3 3 3 5 . . . 4 Max Kills in Single Turn 3 | 1 1 2 2 3 . . 1 2 Gunslinging . | . . . . . . . . . Exploded 3 | . . 2 2 3 . . . 2 Melee 1 | . . . . . . . . 1 Uniques/NPCs Destroyed . | . . . . . . . . . Combat | -11 -10 -10 -9 -9 -9 -8 -8 -7 -------- Run | Yrd Mat Min Mat Min Exi Min Mat Fac Hostile Shots Fired 298 | . 43 8 3 4 . 7 2 231 Missed 114 | . 14 3 . 1 . 4 2 90 Hits 184 | . 29 5 3 3 . 3 . 141 Melee 5 | . . . . . . . . 5 Projectile 179 | . 29 5 3 3 . 3 . 136 AOE 1 | . . 1 . . . . . . Critical Strikes 3 | . . . . . . . . 3 Damage Taken 2569 | . 441 109 28 49 . 20 21 1901 Core 855 | . 61 51 10 9 . 6 9 709 Absorbed by Shields . | . . . . . . . . . Core Remaining (%) 86 | 100 . 55 . . . 93 98 . Volleys Fired 49 | 5 17 2 2 4 . . 9 10 Largest 2 | 2 2 2 1 1 . . 1 2 Hottest 140 | 80 140 70 30 30 . . 30 62 Shots Fired 80 | 9 34 4 2 4 . . 9 18 Gun 55 | 9 31 2 . . . . 3 10 Cannon . | . . . . . . . . . Launcher 22 | . . 2 2 4 . . 6 8 Special 3 | . 3 . . . . . . . Kinetic 13 | . . . . . . . 3 10 Thermal 23 | 4 17 2 . . . . . . Explosive 22 | . . 2 2 4 . . 6 8 Electromagnetic 22 | 5 17 . . . . . . . Robot Hit Streak 10 | 7 10 2 3 7 . . 9 3 Robot Miss Streak 3 | . 3 . . . . . 1 2 Penetration Max . | . . . . . . . . . Secondary Targets 2 | . 2 . . . . . . . Max Gunslinging Chain 1 | . 1 . . . . . . . Shots Hit Robots 78 | 7 19 2 1 4 . . 6 39 Core Hits 59 | 3 9 4 3 7 . . 7 26 Critical Kills 3 | . . . . . . . 1 2 Critical Parts Destroyed 5 | . . . . . . . . 5 Critical Strikes 11 | . . . . . . . 1 10 Destroy 1 | . . . . . . . 1 . Smash 8 | . . . . . . . . 8 Sever 2 | . . . . . . . . 2 Melee Attacks 51 | . . . . . . . . 51 Impact 36 | . . . . . . . . 36 Slashing 15 | . . . . . . . . 15 Piercing . | . . . . . . . . . Sneak Attacks 5 | . . . . . . . . 5 Combat Hostiles . | . . . . . . . . . Follow-up Attacks . | . . . . . . . . . Damage Inflicted 3583 | 97 304 145 168 330 . . 337 2202 Guns 418 | 89 250 . . . . . 31 48 Cannons . | . . . . . . . . . Explosions 1543 | . 30 145 168 330 . . 306 564 Melee 1582 | . . . . . . . . 1582 Ramming 16 | 8 . . . . . . . 8 Kinetic 79 | . . . . . . . 31 48 Thermal 151 | 22 129 . . . . . . . Explosive 1513 | . . 145 168 330 . . 306 564 Electromagnetic 242 | 67 175 . . . . . . . Impact 1318 | . . . . . . . . 1318 Slashing 264 | . . . . . . . . 264 Piercing . | . . . . . . . . . Highest Corruption 14 | 1 1 1 . . . . . 14 Average Corruption 5 | 1 1 1 . . . . . 8 Corruption Purged . | . . . . . . . . . Corruption Blocked . | . . . . . . . . . Effects 26 | . 2 . . . . . . 24 Message Errors 5 | . . . . . . . . 5 Matter Fused 8 | . 1 . . . . . . 7 Heat Flow Errors 4 | . . . . . . . . 4 Parts Rejected 1 | . 1 . . . . . . . Data Loss (minor) 6 | . . . . . . . . 6 Alerts 1 | . . . . . . . . 1 Misdirections 1 | . . . . . . . . 1 Overload Shots . | . . . . . . . . . Overflow Damage 511 | . . 7 1 . . . . 503 Projectiles . | . . . . . . . . . Explosions 8 | . . 7 1 . . . . . Melee 503 | . . . . . . . . 503 Knockbacks 4 | . . . . . . . . 4 Impact 4 | . . . . . . . . 4 Kinetic . | . . . . . . . . . Secondary . | . . . . . . . . . Self-Inflicted Damage 79 | . . 23 . 29 . . 23 4 Shots 5 | . . 2 . 1 . . 2 . Rammed 1 | . . . . . . . . 1 Targets Rammed 2 | 1 . . . . . . . 1 Kicked . | . . . . . . . . . Crushed 1 | 1 . . . . . . . . Highest Temperature 272 | 54 90 . . . . . 1 272 Average Temperature 56 | 25 31 . . . . . 1 94 Received Heat Transfer 321 | . 120 . . . . . . 201 Effects 2 | . . . . . . . . 2 Energy Bleed 1 | . . . . . . . . 1 Interference 1 | . . . . . . . . 1 Siege Activations . | . . . . . . . . . Martial Activations . | . . . . . . . . . Shielding Activations . | . . . . . . . . . Robots Disrupted . | . . . . . . . . . Combat Hostiles . | . . . . . . . . . Robots Corrupted 2 | . . . . . . . . 2 Combat Hostiles 1 | . . . . . . . . 1 Parts Fried 2 | . . . . . . . . 2 Impact Corruptions 13 | . . . . . . . . 13 Robots Melted . | . . . . . . . . . Combat Hostiles . | . . . . . . . . . Parts Melted . | . . . . . . . . . Heat Transferred 325 | 50 275 . . . . . . . Parts Sabotaged . | . . . . . . . . . Parts Stolen . | . . . . . . . . . Parts Stripped . | . . . . . . . . . Power Chain Reactions 1 | . 1 . . . . . . . Alert | -11 -10 -10 -9 -9 -9 -8 -8 -7 ------- Run | Yrd Mat Min Mat Min Exi Min Mat Fac Maximum Alert Level . | . . . . . . . . . Low Security (%) 100 | 100 100 100 100 100 . 100 100 100 Level 1 . | . . . . . . . . . Level 2 . | . . . . . . . . . Level 3 . | . . . . . . . . . Level 4 . | . . . . . . . . . Level 5 . | . . . . . . . . . High Security . | . . . . . . . . . Max Security . | . . . . . . . . . Peak Influence 183 | 5 63 89 115 183 . . 80 103 Initial 39 | . 3 3 22 39 . . . 31 Average 35 | . 17 71 86 158 . . 53 25 Influence Increases 1077 | 15 160 96 100 144 . . 120 442 Destroy 0b10 Robot/C 560 | . 80 60 60 100 . . . 260 Destroy 0b10 Robot/NC 80 | 15 15 . . . . . 15 35 Destroy Leader 102 | . 16 10 10 20 . . 4 42 Allied During Kill 11 | . . . 11 . . . . . Successful Hack 41 | . . . 7 . . . 21 13 Disable Machine 60 | . 15 15 . . . . 30 . Destroy Structure 133 | . 4 11 12 24 . . 35 47 Partial Spotted 30 | . . . . . . . 15 15 Lose Combat Pursuer 60 | . 30 . . . . . . 30 Influence Decreases 1077 | 10 155 47 57 103 143 . 50 512 Entered New Map 291 | . 2 7 37 63 143 . . 39 Time Decay 636 | 10 153 30 20 40 . . 50 333 Lost Part 109 | . . 10 . . . . . 99 Lost Ally 10 | . . . . . . . . 10 Purge Threat 31 | . . . . . . . . 31 Squads Dispatched 7 | . 1 . . . . . . 6 Investigation 5 | . 1 . . . . . . 4 Extermination 2 | . . . . . . . . 2 Reinforcement . | . . . . . . . . . Assault . | . . . . . . . . . Garrison . | . . . . . . . . . Intercept . | . . . . . . . . . Searches Triggered . | . . . . . . . . . Construction Impeded . | . . . . . . . . . Haulers Reinforced . | . . . . . . . . . Active Scanning Responses . | . . . . . . . . . Cargo Convoy Interrupts . | . . . . . . . . . Stealth | -11 -10 -10 -9 -9 -9 -8 -8 -7 --------- Run | Yrd Mat Min Mat Min Exi Min Mat Fac Distress Signals 4 | . 2 . . . . . 1 1 Communications Jammed . | . . . . . . . . . Distress Signals . | . . . . . . . . . Times Spotted 63 | . 14 5 2 5 . 4 5 28 Peak Tracking Total 5 | . 4 3 3 3 . 4 3 5 Tactical Retreats 3 | . 2 . . . . . . 1 Traps | -11 -10 -10 -9 -9 -9 -8 -8 -7 ------- Run | Yrd Mat Min Mat Min Exi Min Mat Fac Traps Triggered 3 | . 2 . . . . . . 1 Indirectly . | . . . . . . . . . Trap Hack Attempts . | . . . . . . . . . Triggered . | . . . . . . . . . Disarmed . | . . . . . . . . . Reprogrammed . | . . . . . . . . . Reused . | . . . . . . . . . Traps Extracted . | . . . . . . . . . Installed . | . . . . . . . . . Triggered . | . . . . . . . . . Most Traps Carried 1 | . . . . 1 1 1 1 1 Machines | -11 -10 -10 -9 -9 -9 -8 -8 -7 ---------- Run | Yrd Mat Min Mat Min Exi Min Mat Fac Machines Disabled 4 | . 1 1 . . . . 2 . Max in Single Turn 1 | . 1 1 . . . . 1 . Garrison Access 1 | . . . . . . . . 1 Machines Repaired . | . . . . . . . . . Machines Dismantled . | . . . . . . . . . Machines Sabotaged . | . . . . . . . . . Overloaded Fab Kills . | . . . . . . . . . Hacking | -11 -10 -10 -9 -9 -9 -8 -8 -7 --------- Run | Yrd Mat Min Mat Min Exi Min Mat Fac Machines Accessed 23 | . 5 . 1 . 2 . 2 13 Terminals 17 | . 5 . 1 . . . 2 9 Fabricators 1 | . . . . . . . . 1 Repair Stations . | . . . . . . . . . Recycling Units . | . . . . . . . . . Scanalyzers 1 | . . . . . . . . 1 Garrison Access 2 | . . . . . . . . 2 Total Hacks 60 | . 10 . 1 . 18 . 3 28 Successful 33 | . 2 . 1 . 18 . 3 9 Failed 27 | . 8 . . . . . . 19 Catastrophic 7 | . 2 . . . . . . 5 Database Lockouts . | . . . . . . . . . Manual 11 | . 2 . . . 1 . 1 7 Terminals 33 | . 10 . 1 . . . 3 19 Fabricators 2 | . . . . . . . . 2 Repair Stations . | . . . . . . . . . Recycling Units . | . . . . . . . . . Scanalyzers 1 | . . . . . . . . 1 Garrison Access 6 | . . . . . . . . 6 Terminal Hacks 30 | . 2 . 1 . 18 . 3 6 Record 17 | . . . . . 17 . . . Level Access Points 3 | . . . . . . . 1 2 Branch Access Points 4 | . 1 . 1 . . . 1 1 Unreport Threat 1 | . . . . . . . . 1 Hauler Manifests 2 | . 1 . . . . . 1 . Registered Components 1 | . . . . . . . . 1 Registered Prototypes 1 | . . . . . . . . 1 Proto ID Catalog 1 | . . . . . 1 . . . Fabricator Hacks . | . . . . . . . . . Repair Station Hacks . | . . . . . . . . . Recycling Unit Hacks . | . . . . . . . . . Scanalyzer . | . . . . . . . . . Garrison Access Hacks 1 | . . . . . . . . 1 Seal Access 1 | . . . . . . . . 1 Unauthorized Hacks 2 | . . . . . . . . 2 Terminals 2 | . . . . . . . . 2 Assimilate 2 | . . . . . . . . 2 Fabricators . | . . . . . . . . . Repair Stations . | . . . . . . . . . Recycling Units . | . . . . . . . . . Scanalyzers . | . . . . . . . . . Garrison Access . | . . . . . . . . . Data Cores Recovered . | . . . . . . . . . Used . | . . . . . . . . . Hacking Detections 16 | . 5 . . . . . . 11 Full Trace Events 5 | . 1 . . . . . . 4 Feedback Events 2 | . . . . . . . . 2 Corruption 2 | . . . . . . . . 2 Feedback Blocked . | . . . . . . . . . Robot Schematics Acquired . | . . . . . . . . . Robots Built . | . . . . . . . . . Authchips . | . . . . . . . . . Time . | . . . . . . . . . Total Robot Build Rating . | . . . . . . . . . Part Schematics Acquired . | . . . . . . . . . Parts Built . | . . . . . . . . . Authchips . | . . . . . . . . . Time . | . . . . . . . . . Total Part Build Rating . | . . . . . . . . . Part Studies Acquired . | . . . . . . . . . Parts Repaired . | . . . . . . . . . Time . | . . . . . . . . . Parts Recycled . | . . . . . . . . . Recycled Matter . | . . . . . . . . . Retrieved Matter . | . . . . . . . . . Retrieved Components . | . . . . . . . . . Parts Scanalyzed . | . . . . . . . . . Part Schematics Acquired . | . . . . . . . . . Parts Damaged . | . . . . . . . . . Bothacking | -11 -10 -10 -9 -9 -9 -8 -8 -7 ------------ Run | Yrd Mat Min Mat Min Exi Min Mat Fac Used RIF Installer . | . . . . . . . . . Robots Hacked . | . . . . . . . . . Non-combat . | . . . . . . . . . Combat . | . . . . . . . . . Robot Hacks Applied . | . . . . . . . . . Relay Couplers Released . | . . . . . . . . . Fabnet Peak Effective % . | . . . . . . . . . Robots Rewired . | . . . . . . . . . Allies Hacked . | . . . . . . . . . Hacks Repelled . | . . . . . . . . . Allies | -11 -10 -10 -9 -9 -9 -8 -8 -7 -------- Run | Yrd Mat Min Mat Min Exi Min Mat Fac Total Allies 5 | . . 3 . . . . . 2 Largest Group 3 | . . . 3 . . . . 1 Highest-Rated Group 40 | . . . 40 . . . . 10 Highest-Rated Ally 16 | . . . 16 . . . . 10 Total Orders . | . . . . . . . . . Ally Attacks . | . . . . . . . . . Total Damage . | . . . . . . . . . Kills . | . . . . . . . . . Allies Corrupted . | . . . . . . . . . Allies Melted . | . . . . . . . . . Intel | -11 -10 -10 -9 -9 -9 -8 -8 -7 ------- Run | Yrd Mat Min Mat Min Exi Min Mat Fac Active Infowar (turns) 1462 | 26 165 . 59 92 85 5 118 912 Sensors 305 | . . . 59 92 85 5 64 . Terrain 191 | 26 165 . . . . . . . T.N.C. 966 | . . . . . . . 54 912 Robot Analysis Total . | . . . . . . . . . Derelict Logs Recovered . | . . . . . . . . . Drone Launches . | . . . . . . . . . Drone Recoveries . | . . . . . . . . . Exploration | -11 -10 -10 -9 -9 -9 -8 -8 -7 ------------- Run | Yrd Mat Min Mat Min Exi Min Mat Fac Turns Passed 1880 | 106 382 75 59 92 85 5 118 958 Spaces Moved 2587 | 52 197 163 79 208 224 10 239 1415 Core 10 | 4 . 2 . . . . . 4 Treads 268 | 48 197 . . . . . . 23 Legs 133 | . . . . . . . . 133 Wheels 8 | . . . . . . . . 8 Hover 1 | . . . . . . . . 1 Flight 2167 | . . 161 79 208 224 10 239 1246 Fastest Speed 29 | 50 160 37 37 37 37 37 29 29 Average Speed 53 | 151 160 39 59 37 37 37 33 45 Slowest Speed 280 | 160 160 150 117 117 37 37 34 280 Overloaded Moves . | . . . . . . . . . Propulsion Burnouts . | . . . . . . . . . Robots Hopped 8 | . . . . 1 . . . 7 Potential Cave-ins . | . . . . . . . . . Cave-ins Triggered . | . . . . . . . . . Exploration Rate (%) 28 | 3 39 21 12 63 61 8 20 32 Regions Visited 8 Branch Regions 4 Pre-discovered Areas 2 | . . 1 . . 1 . . . Known Exits Taken 7 | . 1 1 1 1 1 1 1 . Unknown Exits Taken 1 | 1 . . . . . . . . Scrap Searched 3 | . . . . 2 . 1 . . Spaces Dug 17 | . . . . . . . . 17 Terrain Destroyed 164 | . 4 15 12 33 . . 33 67 Melee 5 | . . . . . . . . 5 Projectile 1 | . 1 . . . . . . . AOE 158 | . 3 15 12 33 . . 33 62 Terrain Rammed . | . . . . . . . . . Walls Destroyed . | . . . . . . . . . Machines Disabled . | . . . . . . . . . Actions | -11 -10 -10 -9 -9 -9 -8 -8 -7 --------- Run | Yrd Mat Min Mat Min Exi Min Mat Fac Total 2889 | 66 222 169 90 217 225 11 265 1624 Wait 124 | . 1 . . . . . 11 112 Move 2564 | 52 196 162 78 205 223 9 238 1401 Hop 8 | . . . . 1 . . . 7 Pick Up 27 | 2 5 1 4 2 1 1 1 10 Fast Attach 26 | 7 1 . . 1 . . 2 15 Attach 8 | . . 2 1 1 . . 2 2 Detach 5 | . . 1 1 1 . . . 2 Swap 11 | . 2 1 1 . . . 2 5 Drop 15 | . . . 3 2 1 1 . 8 Fire 49 | 5 17 2 2 4 . . 9 10 Melee 51 | . . . . . . . . 51 Ram 1 | . . . . . . . . 1 Kick . | . . . . . . . . . Crush . | . . . . . . . . . Escape Stasis . | . . . . . . . . . Rewire . | . . . . . . . . . Trap . | . . . . . . . . . Miscellaneous . | . . . . . . . . . Route ------- -11/Scrapyard -10/Materials (discovered 2 exits: *Min x2) -10/Mines -9/Materials (discovered 3 exits: *Min x2 / Sto) -9/Mines -9/Exiles -8/Mines -8/Materials (discovered 3 exits: *Fac x3) -7/Factory (discovered 6 exits: Fac x4 / *Low x2) History --------- Turn | Location | Event 8 | -11/Scrapyard | Discovered new exit (range 15) 107 | -11/Scrapyard | Entered Materials 317 | -10/Materials | Build established: Mutant 343 | -10/Materials | Discovered new exit (range 7) 359 | -10/Materials | Identified exit to Mines 489 | -10/Materials | Entered Mines 509 | -10/Mines | Found a damaged Exp. Sensor Array with a note attached 510 | -10/Mines | Found Prototype Device 522 | -10/Mines | Assembled infested the area 525 | -10/Mines | Learned location of Storage (-9) 560 | -10/Mines | Discovered new exit (range 5) 561 | -10/Mines | Identified exit to Materials 563 | -10/Mines | Assisted by bots powering up and referring to "LRC-V3" 564 | -10/Mines | Entered Materials 564 | -9/Materials | Accompanied by 3 allies 564 | -9/Materials | Evolved 2 slots: Utility x2 564 | -9/Materials | Identified Exp. Sensor Array 618 | -9/Materials | Identified exit to Mines 618 | -9/Materials | Identified exit to Storage 623 | -9/Materials | Entered Mines 688 | -9/Mines | Found a hidden stash of uninstalled traps 713 | -9/Mines | Deemed a non-threat by the Exiles lab entrance 713 | -9/Mines | Discovered new exit (range 5) 714 | -9/Mines | Identified exit to Exiles 715 | -9/Mines | Entered Exiles 724 | -9/Exiles | Met 8R-AWN 731 | -9/Exiles | Met EX-HEX 741 | -9/Exiles | Met EX-BIN 746 | -9/Exiles | Aligned with FarCom system 747 | -9/Exiles | Given EX-Vault access code 755 | -9/Exiles | Opened EX-Vault 759 | -9/Exiles | Found Modified TNC 767 | -9/Exiles | Warned to stay clear of 0b10 Research branches 778 | -9/Exiles | Met EX-DEC 784 | -9/Exiles | Learned location of Zion (-7) 795 | -9/Exiles | Discovered new exit (range 11) 799 | -9/Exiles | Identified exit to Mines 800 | -9/Exiles | Left Exiles lab with Modified TNC 800 | -9/Exiles | Entered Mines 800 | -8/Mines | Discovered new exit (range 8) 805 | -8/Mines | Identified exit to Materials 805 | -8/Mines | Entered Materials 805 | -8/Materials | Evolved 2 slots: Propulsion x2 891 | -8/Materials | Discovered new exit (range 16) 896 | -8/Materials | Identified exit to Factory 923 | -8/Materials | Entered Factory 923 | -7/Factory | Evolved 2 slots: Utility x2 970 | -7/Factory | Identified exit to Factory 992 | -7/Factory | Identified exit to Lower Caves 1258 | -7/Factory | Lost 3 parts (3n) 1482 | -7/Factory | System corruption reached 10% 1504 | -7/Factory | Core integrity fell below 50% 1537 | -7/Factory | Lost 9 parts (1p4n3u1w) 1856 | -7/Factory | Core integrity fell below 20% 1881 | -7/Factory | Destroyed by Y-54 Guardian with Gatling Laser Last Messages --------------- 01779_ System corrupted: Component data lost. 01806_ System corrupted: IFF burst signal emitted. 01821_ 51S,3WK6BAUJF%N%%%C6BA 01828_ K-01 Serf cleans the Construction Platform. 01845_ System corrupted: Heat flow error (+139). 01846_ Acquired 17 matter. 01849_ Dropped Arm. Treads. 01850_ Acquired Imp. Propulsion Shielding. 01851_ Dropped Impact Mace. 01851_ VTOL Module destroyed. 01852_ Acquired Hrd. Medium Armor Plating. 01861_ R-06 Scavenger collects Arm. Treads. 01865_ R-06 Scavenger collects Impact Mace. 01874_ Y-54 Guardian Imp. Deuterium Engine severed. 01879_ Y-54 Guardian Flak Gun severed. 01880_ Katana destroyed. 01881_ System corrupted: Matter fused (-8). Map ----- +----------------------------------------------------+ | ????????????### """ #????# ########+## | | ? ?????????????? / """ #????# | | ? ???????????????# """ "" ###### | | ##+##############??# """ + | | + #??# ! R" # | | ########## [ #??# """ + | | ?????????# #??# # ####### | | ?????????#//] ##########+###### #????# | | ########## ]] # #????# | | [ #/] # ###### | | # + + | | """ """ # # % % % ###### | | """ """ # # % %#????# | | """ """ # """ ## #####+#### """ "" #????# | | # """ ## #?#! # """ Y" #????# | | """ """ # """ ## #?# # """ "" #????# | | """ """ # ## #?# + #????#? | | """ """ # ## #?# ! # +?????? | | ######### #?# !!! # ### #?????? | | ! #???????# #?# !! # #?# #?????? | | #???????# #?# # #?#######?????? | | #"#########??????#][ #?# ! + #?????????????? | | #### ! #??????# ]! ### # #?????????????? | | ???# """ ########][ ## """ # #?????????????? | | ???# """ + ! [ ### """ # #?????????????? | | ???# """ #############?#@ """ # #?????????????? | | #### #?????????????#Y[ # #?????????????? | | # #?????????????###Y#### ??????????????? | | ##+#####???????????????? #????????????????????? | | #?????????????????????#????????????????????? | | #??????????????????????????????????????????? | | #??????????????????????????????????????????? | | #??????????????????????????????????????????? | | ![ #??????????????????????????????????????????? | | " [[ ???????????????????????????????????????? | | " ? ????????????????????????????????????????????? | | " ??????????????????????????????????????????????? | | ??????????????????????????????????????????????? | | ?????????????????????????????????????????????? | | #####????????????????????????????????????????????? | | ?????????????????????????????????????????????????? | | ?????????????????????????????????????????????????? | | ?????????????????????????????????????????????????? | | ?????????????????????????????????????????????????? | | ?????????????????????????????????????????????????? | | ?????????????????????????????????????????????????? | | ?????????????????????????????????????????????????? | | ?????????????????????????????????????????????????? | | ?????????????????????????????????????????????????? | | ?????????????????????????????????????????????????? | +----------------------------------------------------+ Best States ------------- Heat Dissipation 34 Energy Generation 15 Energy Capacity 160 Matter Stores 300 Matter Capacity 300 Sight Range 16 Robot Scan Range 20 Terrain Scan Range 16 Terrain Scan Density 10 Evasion (%) 64 Targeting Accuracy 14 Armor Integrity Analysis 30 Recoil Reduction 2 Offensive Hacking 10 Item Schematics ----------------- None Robot Schematics ------------------ None Fabricated ------------ Nothing Repaired ---------- Nothing Studied --------- None Alien Tech Used ----------------- None Achievements -------------- None Challenges ------------ None Game ------ Seed ShadeShockboltCoupler Manual? 0 Play Time 00:34:52 Cumulative 70.5 hours Start 2026.02.17 @ 16:04:43 End 2026.02.17 @ 16:38:40 Sessions 1 Manual Loads 0 Difficulty Rogue Special Mode None Game No. 122 Rogue 122 Adventurer 0 Explorer 0 Win Type - Total 0 Types 0/0/0/0/0/0/0/0/0/0 Lore% 36 Gallery% 42 Achievement% 29 Wizard Run 0 Options --------- Layout 1 ASCII 0 Keyboard 1 Movement Arrows Keybinds 0 Fullscreen 1 Font 24/Smallcaps Map View 50x35 Zoom Use 0% Tactical HUD 1 Map Filters NONE Filters NONE Steam 1 RUN: 2a412864-2915-41ac-acdc-9773bb0279e3